bitfinex/quotes_ETHUSD_20220220
["timestamp","ask_amount","ask_price","bid_price","bid_amount"]
[1645337563250,100.0,2631.3,2629.9,1.68563749]
[1645337563446,0.01211553,2631.5,2630.0,0.00096]
[1645337563644,0.01211553,2631.5,2630.0,0.45496]
[1645337563845,0.01211553,2631.5,2630.0,3.85496]
[1645337564053,0.01211553,2631.5,2630.4,1.25]
[1645337564247,0.13215,2632.0,2630.6,1.25]
[1645337564445,0.01245645,2632.1,2631.1,5.67]
[1645337564446,0.01201743,2631.3,2631.1,5.67]
[1645337564652,0.1970557,2632.7,2631.2,0.00096]
[1645337564845,0.1970557,2632.7,2631.2,1.2395]
[1645337565146,0.93537609,2632.7,2631.5,5.67]
[1645337565348,3.75,2631.8,2631.6,0.454]
[1645337565548,25.0,2631.7,2631.1,0.00096]
[1645337565788,3.75,2631.2,2630.6,0.00096]
[1645337565991,21.58611616,2631.7,2630.0,0.00096]
[1645337565992,3.75,2630.7,2630.0,0.00096]
[1645337566186,5.0,2631.6,2629.8,0.00096]
[1645337566187,3.75,2630.1,2629.8,0.00096]
[1645337566485,3.75,2630.1,2629.0,2.27743816]
[1645337566486,3.75,2630.1,2629.5,0.00096]
[1645337566681,3.75,2630.1,2629.2,0.00096]
[1645337566882,32.0,2629.7,2628.5,0.454]
[1645337567085,32.0,2629.7,2627.6,1.27401851]
[1645337567086,3.75,2628.7,2627.6,1.27401851]
[1645337567283,0.99428359,2627.9,2627.6,1.27401851]
[1645337567681,0.99428359,2627.9,2626.9,0.00096]
[1645337568087,3.75,2627.1,2626.9,0.00096]
[1645337568281,1.06817648,2627.0,2626.6,0.00096]
[1645337568487,3.7,2627.0,2626.5,2.0889905]
[1645337568681,0.454,2628.1,2626.5,2.0889905]
[1645337568682,0.08611616,2627.9,2626.5,2.0889905]
[1645337568883,3.78611616,2627.9,2626.5,2.0889905]
[1645337569181,3.5,2627.8,2626.6,0.00096]
[1645337569432,2.0,2628.2,2627.0,1.06323109]
[1645337569638,5.13215,2629.6,2627.5,0.01238728]
[1645337569639,3.5,2629.4,2627.5,0.01238728]
[1645337569837,0.13215,2629.6,2627.5,0.01238728]
[1645337569838,3.7,2629.0,2627.5,0.01238728]
[1645337570032,3.7,2629.0,2627.6,0.454]
[1645337570235,0.13215,2629.9,2628.2,1.3121289]
[1645337570433,0.13215,2629.9,2629.2,1.07283153]
[1645337570434,3.7,2629.5,2629.2,1.07283153]
[1645337570632,3.7,2629.5,2628.3,0.13915997]
[1645337570633,5.479,2629.5,2629.3,0.00096]
[1645337570835,1.779,2629.5,2628.4,0.00096]
[1645337571043,1.05966,2629.9,2629.6,0.80627619]
[1645337571044,0.13215,2629.9,2629.6,0.80627619]
[1645337571238,0.05625083,2629.9,2629.7,0.454]
[1645337571433,0.176,2632.6,2629.8,24.5]
[1645337571631,0.13215,2631.7,2630.0,1.31290699]
[1645337571836,1.14635847,2631.6,2631.4,1.08682128]
[1645337572041,2.01215411,2632.8,2631.4,1.54082128]
[1645337572042,3.7,2632.3,2631.4,1.54082128]
[1645337572232,3.7,2633.3,2631.4,2.65012128]
[1645337572433,3.7,2633.3,2631.5,0.38139]
[1645337572633,3.7,2633.3,2631.6,0.45496]
[1645337572838,3.7,2633.3,2631.8,0.01222201]
[1645337573033,3.7,2633.2,2631.7,0.00096]
[1645337573310,151.777193,2633.2,2631.5,0.00096]
[1645337573507,51.777193,2633.1,2631.6,0.454]
[1645337573720,151.777193,2633.1,2631.7,0.00096]
[1645337573909,3.7,2631.9,2631.8,1.16270164]
[1645337574108,4.64691696,2632.2,2631.5,0.00096]
[1645337574305,0.0124879,2632.6,2631.6,0.38043]
[1645337574508,151.777193,2632.1,2631.7,0.00096]
[1645337574710,0.1992,2634.0,2631.1,0.00096]
[1645337574711,3.7,2632.0,2631.1,0.00096]
[1645337574913,3.7,2631.7,2631.5,0.00096]
[1645337575111,3.7,2631.7,2631.1,0.00096]
[1645337575306,3.7,2631.7,2630.8,0.00096]
[1645337575307,3.7,2631.2,2630.8,0.00096]
[1645337575510,0.07036,2631.6,2631.4,0.0074425]
[1645337575711,4.87283634,2631.7,2631.4,0.0074425]
[1645337575913,0.99349024,2631.8,2631.4,0.0074425]
[1645337576114,0.00347621,2633.2,2631.5,0.454]
[1645337576314,0.00347621,2633.2,2631.6,0.00096]
[1645337576510,0.00347577,2633.2,2631.7,0.454]
[1645337576712,4.69648924,2633.2,2631.8,0.00096]
[1645337576931,5.54623356,2633.2,2632.6,0.87982219]
[1645337577235,5.54623356,2633.2,2632.0,0.08947215]
[1645337577236,1.79623356,2633.2,2632.0,0.08947215]
[1645337577429,1.79623356,2633.2,2632.0,0.09043215]
[1645337577630,3.7,2632.4,2632.2,0.00156635]
[1645337578029,1.79971105,2633.2,2632.2,0.00156635]
[1645337578230,29.910572,2632.3,2632.2,0.00156635]
[1645337578427,0.94996673,2633.2,2633.0,1.72191265]
[1645337578629,0.94648924,2633.2,2633.0,1.72191265]
[1645337578835,0.01200047,2634.4,2633.0,1.72191265]
[1645337579036,1.60572,2634.7,2633.0,1.72191265]
[1645337579037,21.30137,2633.1,2633.0,1.72191265]
[1645337579231,1.03743336,2633.5,2633.0,2.58064071]
[1645337579432,3.7,2634.0,2633.0,2.58064071]
[1645337579834,0.508,2634.7,2633.0,2.58064071]
[1645337579835,0.508,2634.7,2633.1,0.45496]
[1645337580037,1.862,2634.9,2633.2,3.50096]
[1645337580038,29.502131,2633.9,2633.2,3.50096]
[1645337580234,0.99251335,2634.9,2633.3,0.45496]
[1645337580235,0.00347775,2633.6,2633.3,0.45496]
[1645337580431,0.00347775,2633.6,2633.4,0.91038073]
[1645337580681,62.263549,2633.5,2633.4,4.3634707]
[1645337580886,0.07033,2635.9,2633.7,1.45171]
[1645337581090,0.07036,2636.5,2634.5,0.01279224]
[1645337581287,0.0204,2636.7,2634.6,6.81409997]
[1645337581488,0.92751,2635.7,2634.9,5.68215835]
[1645337581685,0.92751,2635.7,2634.7,4.8]
[1645337581686,0.87751,2635.7,2635.5,0.88192779]
[1645337581882,0.87751,2635.7,2635.4,0.392]
[1645337582282,0.38461,2635.8,2635.5,0.454]
[1645337582485,3.71248468,2637.0,2635.5,0.454]
[1645337582686,0.1592,2637.6,2635.5,3.954]
[1645337582687,0.148,2637.6,2635.5,3.954]
[1645337582889,3.7,2637.2,2635.6,3.88043]
[1645337583084,3.7,2637.2,2635.7,8.02201]
[1645337583287,1.02370749,2637.5,2636.9,0.96565759]
[1645337583486,1.02370749,2637.5,2636.8,0.281]
[1645337583685,6.03656653,2637.5,2636.1,0.454]
[1645337583886,6.03656653,2637.5,2634.8,3.5]
[1645337583887,3.6,2636.2,2634.8,3.5]
[1645337584092,0.01217059,2636.9,2634.6,0.13819997]
[1645337584093,3.6,2634.9,2634.6,0.13819997]
[1645337584292,0.01284899,2635.6,2634.6,0.13819997]
[1645337584530,0.01284899,2635.6,2633.9,0.00096]
[1645337584531,3.6,2634.7,2633.9,0.454]
[1645337584730,3.6,2634.0,2633.3,0.46468736]
[1645337584934,0.3,2634.7,2633.4,0.00096]
[1645337584935,3.6,2633.5,2633.4,0.00096]
[1645337585126,3.5,2634.7,2633.3,0.46468736]
[1645337585127,3.6,2634.1,2633.3,0.00049]
[1645337585330,0.02027,2634.6,2633.3,0.00049]
[1645337585331,0.02027,2634.6,2633.4,0.00096]
[1645337585528,3.6,2634.3,2633.8,1.05463793]
[1645337585734,1.11389893,2634.4,2633.3,0.00049]
[1645337585735,3.6,2633.9,2633.3,0.00049]
[1645337585930,3.6,2633.4,2633.0,1.72191265]
[1645337586128,3.6,2633.8,2633.0,1.72287265]
[1645337586335,0.02027,2634.0,2633.0,2.17591265]
[1645337586336,0.5,2634.0,2633.0,2.17591265]
[1645337586532,0.00347892,2634.1,2633.0,2.17591265]
[1645337586533,0.00347892,2634.1,2633.1,0.0122929]
[1645337586735,0.00347892,2634.1,2634.0,1.5]
[1645337586943,4.1,2635.8,2634.0,2.34193736]
[1645337587130,0.5,2635.8,2634.1,0.0096431]
[1645337587329,3.6,2635.0,2634.2,0.454]
[1645337587530,1.08129155,2635.1,2634.2,0.454]
[1645337587731,3.6,2634.9,2634.2,0.454]
[1645337587929,3.6,2635.7,2634.2,0.454]
[1645337588186,4.59198512,2636.5,2634.3,3.5]
[1645337588381,4.59198512,2636.5,2634.4,0.46660373]
[1645337588579,0.0034789,2634.7,2634.5,4.9]
[1645337588786,2.2921,2636.8,2634.7,52.44952]
[1645337588787,4.74562233,2636.8,2634.7,52.44952]
[1645337589087,3.58782233,2635.4,2634.8,0.59219997]
[1645337589290,0.98352573,2635.7,2634.5,0.454]
[1645337589488,3.58782233,2634.6,2634.2,0.454]
[1645337589685,3.58782233,2634.7,2634.1,0.0096431]
[1645337589883,3.58782233,2635.1,2634.1,0.0096431]
[1645337590083,3.58782233,2635.3,2634.3,0.84022359]
[1645337590286,3.58782233,2634.4,2634.2,0.454]
[1645337590485,3.58782233,2634.4,2634.1,0.0096431]
[1645337590686,3.58782233,2634.4,2634.1,4.31e-05]
[1645337590687,3.58782233,2634.2,2634.1,4.31e-05]
[1645337591114,0.16587,2635.4,2634.1,4.31e-05]
[1645337591115,4.45014,2635.4,2634.1,4.31e-05]
[1645337591285,4.43294835,2634.8,2634.1,4.31e-05]
[1645337591683,0.5,2635.6,2634.1,4.31e-05]
[1645337591684,3.58782233,2635.3,2634.1,4.31e-05]
[1645337591975,0.5,2635.6,2634.6,1.41217767]
[1645337592165,0.5,2635.6,2634.8,0.0125464]
[1645337592364,3.58782233,2635.4,2634.9,0.454]
[1645337592863,1.17011932,2636.8,2634.5,0.454]
[1645337592864,3.58782233,2635.0,2634.5,0.454]
[1645337593066,3.58782233,2635.0,2634.1,4.31e-05]
[1645337593067,3.58782233,2635.0,2634.2,0.454]
[1645337593266,0.51236248,2636.1,2634.1,4.31e-05]
[1645337593267,3.58782233,2634.3,2634.1,4.31e-05]
[1645337593466,3.58782233,2634.2,2634.1,1.19658276]
[1645337593665,0.00347152,2635.3,2634.1,1.65058276]
[1645337593863,0.5,2635.1,2634.1,1.65058276]
[1645337594367,3.58782233,2635.9,2634.2,4.44977]
[1645337594571,1.2427,2636.7,2634.2,4.44977]
[1645337594572,0.00334503,2634.8,2634.4,0.01284101]
[1645337594764,1.026746,2636.0,2635.5,0.99881684]
[1645337594964,3.58782233,2636.3,2635.6,0.454]
[1645337595164,3.58782233,2636.0,2635.6,0.454]
[1645337595363,1.862,2636.7,2635.6,0.454]
[1645337595564,3.58782233,2636.3,2635.6,0.454]
[1645337595983,3.58782233,2636.3,2635.9,1.08208016]
[1645337596181,3.58782233,2636.3,2635.8,0.454]
[1645337596787,2.78111366,2636.5,2635.8,0.454]
[1645337596788,1.862,2636.5,2635.8,0.454]
[1645337596994,1.1578,2636.8,2635.8,0.50523807]
[1645337597384,1.1578,2636.8,2635.9,0.1895]
[1645337597587,0.02026,2638.0,2636.0,0.454]
[1645337597785,3.58782233,2636.8,2636.5,0.97472523]
[1645337597988,0.98780261,2637.1,2635.8,0.05123807]
[1645337597989,3.58782233,2636.6,2635.8,0.05123807]
[1645337598291,1.862,2636.6,2635.8,0.05123807]
[1645337598485,1.86819981,2636.4,2635.8,0.05123807]
[1645337598987,1.86819981,2636.4,2635.8,0.50523807]
[1645337599430,0.00346591,2636.2,2635.8,0.50523807]
[1645337600035,0.00346591,2636.2,2635.8,0.454]
[1645337600036,2.77015332,2635.9,2635.8,0.454]
[1645337600236,2.77015332,2635.9,2635.1,0.6435]
[1645337600237,1.86819981,2635.9,2635.1,0.6435]
[1645337600432,1.86819981,2635.9,2635.1,0.454]
[1645337600637,3.5,2636.5,2635.1,0.454]
[1645337600840,3.5,2636.5,2634.8,0.13819997]
[1645337600841,1.86819981,2635.2,2634.8,0.13819997]
[1645337601040,0.3346,2635.3,2634.2,0.5]
[1645337601041,1.86819981,2634.9,2634.2,0.5]
[1645337601245,1.86819981,2634.3,2634.0,1.50164485]
[1645337601637,1.86819981,2634.3,2634.0,1.5]
[1645337602534,1.81819981,2634.2,2634.0,1.5]
[1645337602939,1.90042,2635.1,2634.0,1.5]
[1645337602940,1.81819981,2634.5,2634.0,1.5]
[1645337603188,44.52832749,2635.1,2634.0,1.5]
[1645337603189,1.81819981,2634.2,2634.0,1.5]
[1645337603389,0.00333809,2634.9,2634.2,0.76273761]
[1645337603792,0.00333809,2634.9,2634.3,1.40381]
[1645337604093,3.52026,2636.2,2634.3,1.40381]
[1645337604094,0.02026,2636.2,2634.4,0.38043]
[1645337604291,6.1549,2636.4,2634.8,0.38793736]
[1645337604292,4.243e-05,2634.9,2634.8,0.38793736]
[1645337604490,4.34694,2636.8,2634.9,51.5]
[1645337604491,0.02026,2636.7,2634.9,51.5]
[1645337604692,5.0,2636.7,2635.0,0.454]
[1645337604995,1.15599835,2635.8,2635.2,1.91563857]
[1645337605191,0.02026,2636.6,2635.3,0.454]
[1645337605391,0.01264605,2637.0,2635.3,0.454]
[1645337605392,0.01264605,2637.0,2635.3,0.59219997]
[1645337605889,0.02029,2636.9,2635.3,0.59219997]
[1645337606090,0.94239037,2636.7,2636.1,1.08817345]
[1645337606291,0.94239037,2636.7,2636.0,0.3355]
[1645337606490,0.94239037,2636.7,2636.2,0.454]
[1645337607161,1.1767,2637.4,2636.2,0.454]
[1645337607754,1.1767,2637.4,2636.3,0.1895]
[1645337607954,0.00333631,2636.9,2636.4,0.454]
[1645337608154,3.51289332,2638.5,2636.9,51.5]
[1645337608356,1.89757,2638.7,2637.0,4.33443]
[1645337608561,1.4567304,2639.4,2637.0,6.3135]
[1645337608562,5.0,2638.9,2637.0,6.3135]
[1645337608756,0.03277754,2638.8,2637.0,0.454]
[1645337608954,0.03277754,2638.8,2636.9,0.6372]
[1645337608955,0.3749,2638.6,2636.9,0.6372]
[1645337609154,0.3749,2638.4,2636.8,0.2628]
[1645337609359,0.3749,2638.4,2636.9,1.11750636]
[1645337609360,0.02048,2638.3,2636.9,1.11750636]
[1645337609554,0.3749,2638.2,2636.9,1.11750636]
[1645337609952,0.02048,2638.3,2636.9,1.11750636]
[1645337609953,1.32395,2638.0,2636.9,1.11750636]
[1645337610353,2.32395,2638.0,2636.6,0.94901]
[1645337610554,2.32395,2638.0,2636.3,0.1895]
[1645337610783,2.32395,2638.0,2636.2,4.1435]
[1645337610784,2.17395,2638.0,2636.2,4.1435]
[1645337611084,1.81943,2638.0,2636.5,0.94906]
[1645337611286,0.79905,2638.0,2636.6,3.5]
[1645337611495,0.02018,2638.9,2637.8,0.96888606]
[1645337611686,6.0578,2639.6,2637.8,0.96888606]
[1645337611687,3.5,2639.6,2637.9,0.03742727]
[1645337611886,3.5,2639.6,2637.7,1.5304]
[1645337611887,5.0,2638.8,2637.7,0.2559]
[1645337612084,6.862,2638.4,2636.6,0.454]
[1645337612286,1.862,2638.4,2636.5,3.53744715]
[1645337612483,6.862,2638.4,2636.5,3.53744715]
[1645337612691,0.01291506,2639.1,2635.0,17.55277765]
[1645337612692,1.862,2637.7,2636.1,3.5]
[1645337612886,1.862,2637.7,2636.4,1.14911422]
[1645337613089,1.862,2637.7,2636.5,0.9488896]
[1645337613386,1.862,2637.7,2636.6,3.30011]
[1645337613585,0.5,2639.7,2636.7,10.12342719]
[1645337613784,0.88986657,2638.8,2638.2,1.167557]
[1645337613989,0.94841,2639.5,2638.2,1.167557]
[1645337613990,1.32331,2639.5,2638.2,1.167557]
[1645337614186,1.32331,2639.5,2636.9,3.5]
[1645337614187,0.3749,2639.2,2636.9,3.5]
[1645337614434,16.43,2639.3,2637.0,0.454]
[1645337614435,5.38752304,2639.0,2637.0,0.454]
[1645337614638,0.94884,2638.5,2637.0,0.454]
[1645337615037,3.7,2638.8,2637.2,0.94879]
[1645337615247,3.7,2638.8,2637.5,1.8970051]
[1645337615248,0.00344262,2638.1,2637.5,1.8970051]
[1645337615434,0.00344262,2638.1,2637.6,0.6435]
[1645337615636,0.00344262,2638.1,2637.6,1.2435]
[1645337615838,3.5,2638.7,2637.7,1.89658]
[1645337616037,3.65344262,2638.8,2637.8,3.29874]
[1645337616236,4.82275415,2638.8,2637.8,4.2471082]
[1645337616438,4.82275415,2638.8,2637.8,0.454]
[1645337617036,4.82275415,2638.8,2637.7,1.89658]
[1645337617037,4.82275415,2638.8,2638.0,0.94855]
[1645337617237,1.0,2638.7,2638.2,1.89685]
[1645337617438,3.65344262,2638.8,2638.2,1.93102966]
[1645337617641,0.00344394,2638.4,2638.2,1.93102966]
[1645337618037,0.00344394,2638.4,2638.2,3.82770966]
[1645337618279,0.00344394,2638.4,2638.3,0.96562524]
[1645337618481,1.93530029,2638.8,2638.3,0.96562524]
[1645337618682,0.02028,2639.5,2638.4,40.0]
[1645337618885,0.02027,2640.2,2638.5,0.454]
[1645337619089,5.00126828,2640.0,2638.8,0.94807]
[1645337619380,5.00126828,2640.0,2638.4,0.05]
[1645337619381,0.02027,2639.9,2638.4,0.05]
[1645337619580,0.00126828,2640.0,2638.4,0.05]
[1645337619781,0.00126828,2640.0,2639.1,0.05]
[1645337619981,0.00126828,2640.0,2639.0,2.8438484]
[1645337620179,1.04936828,2640.3,2639.9,0.99650362]
[1645337620386,1.04936828,2640.3,2639.4,0.94797]
[1645337620581,1.04936828,2640.3,2639.5,0.9479697]
[1645337620779,1.04936828,2640.3,2638.6,7.29177]
[1645337620982,3.5,2640.2,2638.3,0.05]
[1645337621180,0.94833,2640.1,2638.3,0.05]
[1645337621378,0.94792924,2638.7,2638.3,0.05]
[1645337621578,3.82025,2640.0,2638.2,3.82685966]
[1645337621778,3.82025,2640.0,2638.5,1.8965257]
[1645337621779,1.0,2639.9,2638.5,1.8965257]
[1645337622048,4.95,2638.7,2638.2,0.03417966]
[1645337622241,3.82025,2638.6,2636.8,0.1894]
[1645337622443,3.82025,2638.6,2636.8,0.0015043]
[1645337622444,4.95,2638.1,2636.8,0.0015043]
[1645337622639,0.02025,2638.0,2636.8,0.0015043]
[1645337622955,0.99879953,2637.0,2636.8,0.0015043]
[1645337623143,0.94938,2636.9,2636.8,0.0015043]
[1645337623344,0.94938,2636.9,2635.6,0.99952]
[1645337623538,0.94938,2636.9,2635.7,1.61207198]
[1645337624143,0.94938,2636.9,2635.8,2.71819047]
[1645337624346,1.862,2636.9,2636.0,0.9493]
[1645337624540,1.0,2636.9,2636.0,0.9493]
[1645337624740,40.01993855,2637.1,2636.0,0.9493]
[1645337625143,1.13138969,2636.7,2636.2,1.04264575]
[1645337625550,0.02029,2637.5,2636.3,0.94919]
[1645337625802,0.02032,2638.2,2636.3,2.56096515]
[1645337625992,0.00343679,2638.2,2636.4,1.80127515]
[1645337626191,0.00343679,2638.2,2636.8,0.05]
[1645337626391,0.00343679,2638.2,2636.7,0.05]
[1645337626693,1.16438094,2637.4,2636.9,0.9489028]
[1645337626891,1.16438094,2637.4,2637.2,0.94892]
[1645337627197,1.16438094,2637.4,2636.5,0.1895]
[1645337627393,1.16438094,2637.4,2636.8,0.00148737]
[1645337627794,9.39924,2637.3,2636.8,8.737e-05]
[1645337627997,4.95,2636.9,2636.8,8.737e-05]
[1645337628203,4.95,2636.9,2635.3,0.12940586]
[1645337628204,13.46093,2636.9,2635.3,0.12940586]
[1645337628396,4.9628913,2636.5,2634.9,0.05]
[1645337628596,0.2303,2636.2,2634.9,0.05]
[1645337628795,0.2303,2636.2,2635.1,0.05]
[1645337628993,4.49199986,2636.8,2635.2,1.61258166]
[1645337629194,0.02057,2636.7,2635.2,3.51152166]
[1645337629432,4.49199986,2636.8,2635.5,0.05]
[1645337629731,0.99199986,2636.8,2635.7,0.05]
[1645337629930,0.99199986,2636.8,2635.6,0.99936]
[1645337630132,0.99199986,2636.8,2635.9,0.94933]
[1645337630331,0.99199986,2636.8,2635.9,0.99933]
[1645337630534,0.99199986,2636.8,2635.9,0.05]
[1645337631239,0.99199986,2636.8,2635.8,1.07875998]
[1645337631538,3.5,2637.2,2636.0,2.89755]
[1645337631732,3.5,2637.4,2636.0,2.84755]
[1645337631931,3.5,2637.4,2636.3,0.05]
[1645337632139,3.5,2637.4,2636.4,0.05]
[1645337632335,1.18366309,2636.5,2636.0,2.84755]
[1645337632533,3.5,2637.4,2636.4,0.05]
[1645337632734,1.862,2637.7,2636.6,0.05]
[1645337633035,0.00342531,2637.5,2636.6,0.05]
[1645337633310,1.862,2637.7,2636.2,0.9490986]
[1645337633517,0.97925614,2637.0,2636.7,0.99904]
[1645337634213,0.00342632,2637.5,2636.9,0.05]
[1645337634414,0.00342632,2637.5,2636.7,0.94904]
[1645337634415,1.1713,2638.6,2637.3,0.05]
[1645337634614,1.1713,2638.6,2637.5,0.94871]
[1645337634811,0.5,2638.1,2637.5,0.94871]
[1645337635013,1.862,2638.7,2637.5,0.94871]
[1645337635213,0.97399198,2637.8,2637.5,0.94871]
[1645337635412,1.862,2638.7,2637.5,2.8459574]
[1645337635613,1.862,2638.7,2637.5,1.9473074]
[1645337635814,1.862,2638.7,2637.8,0.94863]
[1645337636024,0.01287852,2639.4,2638.2,0.05]
[1645337636220,3.1588,2639.6,2638.5,0.05]
[1645337636221,1.1588,2639.6,2638.5,0.05]
[1645337636419,16.0299266,2640.2,2638.6,0.85550487]
[1645337636616,16.0299266,2640.2,2638.6,1.80372807]
[1645337636617,2.3385,2640.2,2638.6,1.80372807]
[1645337636814,2.0,2640.6,2638.6,1.80372807]
[1645337637039,1.89654,2640.3,2638.8,0.94833]
[1645337637236,0.00341675,2639.5,2638.8,0.94833]
[1645337637535,0.00341675,2639.5,2639.0,1.16616212]
[1645337637734,1.862,2640.2,2639.0,1.16616212]
[1645337637938,0.01269134,2640.7,2639.0,2.11433212]
[1645337638139,0.01269134,2640.7,2639.1,0.94821]
[1645337638937,0.93782574,2640.0,2639.3,0.05]
[1645337639137,0.93782574,2640.0,2639.0,3.5]
[1645337639538,0.93782574,2640.0,2639.0,3.45]
[1645337640139,1.862,2639.9,2639.4,1.87972771]
[1645337640339,2.862,2639.9,2639.4,1.87972771]
[1645337640563,1.862,2639.9,2639.4,1.87972771]
[1645337640786,1.0,2639.8,2639.4,1.87972771]
[1645337640987,1.0,2639.9,2639.4,0.94806]
[1645337641195,0.03296134,2640.7,2639.5,0.94795]
[1645337641391,2.3993,2641.4,2639.6,3.5]
[1645337641392,0.02027,2641.1,2639.6,3.5]
[1645337641591,1.1389,2641.6,2640.0,0.94769]
[1645337641592,1.15917,2641.6,2640.0,0.94769]
[1645337641789,0.11421,2641.5,2640.0,0.285]
[1645337641989,0.00341351,2640.2,2640.0,0.285]
[1645337642188,0.00341351,2640.2,2640.1,0.98439501]
[1645337642389,0.00341351,2640.2,2640.1,2.87969501]
[1645337642694,0.02027,2641.4,2640.1,2.87969501]
[1645337642695,3.54035807,2641.7,2640.2,0.00682701]
[1645337642892,1.862,2641.6,2640.2,0.00682701]
[1645337643088,0.94769,2641.6,2640.2,0.00682701]
[1645337643492,0.88969285,2640.6,2640.2,0.00682701]
[1645337643695,0.04035807,2641.7,2640.2,0.00682701]
[1645337643696,3.55317252,2641.7,2640.2,0.00682701]
[1645337643893,3.52344252,2641.7,2640.2,0.00682701]
[1645337644191,0.94777,2641.4,2640.2,0.00682701]
[1645337644639,0.90257894,2640.8,2640.3,1.10574279]
[1645337644837,0.90257894,2640.8,2640.2,0.00682701]
[1645337645239,1.94776,2641.4,2640.2,0.00682701]
[1645337645439,0.94776,2641.4,2640.2,0.00682701]
[1645337645841,0.01062807,2641.7,2640.2,0.00682701]
[1645337646046,0.01062807,2641.7,2640.3,0.1892]
[1645337646245,0.01062807,2641.7,2640.3,3.6892]
[1645337646441,0.01062807,2641.7,2640.8,2.84142]
[1645337646639,0.01062807,2641.7,2640.8,3.03062]
[1645337646845,0.01062807,2641.7,2640.8,0.1892]
[1645337646846,0.00331961,2641.1,2640.8,0.1892]
[1645337647041,0.00331961,2641.1,2640.8,1.8944956]
[1645337647241,0.00331961,2641.1,2641.0,0.94736]
[1645337647640,0.01062807,2641.7,2641.0,1.13656]
[1645337648041,0.00331961,2641.2,2641.1,1.894118]
[1645337648287,0.01062807,2641.7,2641.1,52.894118]
[1645337648490,0.01062807,2641.7,2641.3,0.92349794]
[1645337649091,0.01062807,2641.7,2641.0,1.89417]
[1645337649294,0.01062807,2641.7,2640.6,0.94747]
[1645337649492,0.01062807,2641.7,2640.2,1.40838921]
[1645337649493,0.01062807,2641.7,2640.2,5.19839921]
[1645337649690,0.01062807,2641.7,2640.3,0.1892]
[1645337650089,0.01062807,2641.7,2641.1,0.84479659]
[1645337650688,1.11184964,2641.6,2641.1,0.84479659]
[1645337650889,0.01062807,2641.7,2641.1,0.84479659]
[1645337651693,0.00341479,2641.5,2641.1,0.84479659]
[1645337652336,0.00341479,2641.5,2641.2,1.89441]
[1645337652536,0.01062807,2641.7,2641.4,2.84139]
[1645337652938,0.01062807,2641.7,2641.5,0.94712]
[1645337653138,4.62768508,2642.4,2641.4,2.84139]
[1645337653337,1.0,2642.3,2641.4,2.84139]
[1645337653738,0.94910223,2642.3,2641.7,1.12038808]
[1645337653937,1.12768508,2642.4,2641.7,1.12038808]
[1645337654146,3.5,2643.0,2641.7,3.08020251]
[1645337654342,3.45,2643.3,2641.7,2.13313251]
[1645337654539,6.95,2643.3,2641.7,2.13313251]
[1645337654740,3.45,2643.3,2641.7,2.13313251]
[1645337654944,0.86134154,2642.9,2642.3,1.06215074]
[1645337655339,0.86134154,2642.9,2642.1,0.94691]
[1645337655696,0.86134154,2642.9,2641.9,1.89381]
[1645337655697,5.39348,2644.2,2642.3,0.9467777]
[1645337655896,5.39348,2644.2,2642.4,3.5]
[1645337655897,3.5,2644.2,2642.4,3.5]
[1645337656098,3.5,2644.2,2642.5,0.454]
[1645337656294,1.8008476,2644.4,2643.1,0.94651]
[1645337656495,0.92745528,2643.9,2643.2,0.2618]
[1645337656698,1.81358541,2644.4,2643.2,0.2618]
[1645337657093,1.8008476,2644.4,2643.2,0.2618]
[1645337657296,1.7508476,2644.4,2643.2,0.2618]
[1645337657493,1.7508476,2644.4,2643.3,1.89309]
[1645337657699,0.00330436,2643.9,2642.9,3.78603]
[1645337657898,0.00330436,2643.9,2642.6,6.5282287]
[1645337657899,0.00330436,2643.9,2642.6,0.189]
[1645337658097,0.00330436,2643.9,2642.1,0.189]
[1645337658299,5.0,2642.9,2641.5,3.5]
[1645337658499,5.0,2642.9,2641.3,0.01297904]
[1645337658500,18.0,2642.7,2641.3,0.1892]
[1645337658699,18.0,2642.7,2640.3,0.46679953]
[1645337658700,1.12578123,2642.5,2640.8,0.1892]
[1645337658903,5.0,2642.2,2640.2,0.19602701]
[1645337659097,5.0,2641.4,2640.2,0.00682701]
[1645337659303,51.0,2641.1,2639.4,0.5]
[1645337659557,51.0,2641.1,2638.5,0.6]
[1645337659558,5.0,2640.2,2638.2,0.70449]
[1645337659754,5.0,2640.2,2638.0,0.97368951]
[1645337659755,1.06413963,2638.6,2638.0,0.97368951]
[1645337660059,2.846,2639.3,2638.9,1.51236804]
[1645337660254,2.846,2639.3,2638.7,0.00912997]
[1645337660255,3.146,2639.3,2638.7,0.00912997]
[1645337660457,1.1894,2639.2,2638.7,0.00912997]
[1645337660654,47.741016,2639.2,2638.7,0.00912997]
[1645337660855,2.04401522,2639.1,2638.7,0.00912997]
[1645337661053,2.04401522,2639.1,2638.4,1.01647544]
[1645337661054,4.68394522,2639.1,2638.4,1.01647544]
[1645337661254,3.615486,2639.0,2637.9,0.007]
[1645337661457,1.0,2639.0,2637.9,0.007]
[1645337661957,1.09538522,2639.1,2637.9,0.007]
[1645337662260,3.5,2639.8,2638.0,13.98877436]
[1645337662457,8.60277443,2640.1,2638.3,0.01259262]
[1645337662654,6.88528526,2640.1,2638.4,1.6101461]
[1645337662858,3.6894,2640.7,2638.5,13.325845]
[1645337663056,3.6894,2640.7,2639.8,1.10030959]
[1645337663057,3.5,2640.7,2639.8,1.10030959]
[1645337663294,3.6892,2641.2,2639.1,0.454]
[1645337663691,3.6892,2641.2,2639.1,0.754]
[1645337663893,3.6892,2641.2,2639.2,1.79881083]
[1645337663894,3.5,2641.2,2639.2,1.79881083]
[1645337664090,0.1892,2641.7,2639.3,2.06361083]
[1645337664391,0.1892,2641.9,2640.4,1.06863392]